Cogmind - Beta 13 @@@ ROGUE MODE // 2024.04.24 @ 16:20:41 Player: Gabe+Kate4EVR Result: Destroyed by G-50 Soldier with Heavy Laser Performance ------------- Evolutions (4) 2000 Regions Visited (4) 800 Robots Destroyed (49) 245 Value Destroyed (1093) 1093 Prototype IDs (3) 60 Alien Tech Used (0) 0 Bonus (-104) -104 TOTAL SCORE: 4094 Bonus ------- Friendly Fire -104 Cogmind --------- Core Integrity 0/850 Matter 32/300 Energy 79/100 System Corruption 5% Temperature Cool (9) Movement Core (50) Location -6/Factory Parts ------- > --- POWER (2) -------- (None) > --- PROPULSION (4) --- (None) > --- UTILITY (4) ------ (None) > --- WEAPON (5) ------- (None) > --- INVENTORY (5) ---- Light Cannon Grenade Launcher Multitool Peak State ------------ > --- POWER ------------ Multi-Ion Engine > --- PROPULSION ------- Aluminum-Compact Exoskeleton > --- UTILITY ---------- Armored Scrap Engine Improved Terrain Scanner Stasis Canceller > --- WEAPON ----------- Heavy Ion Cannon Chainsword Chainsword Chainsword Chainsword > --- INVENTORY -------- Light Cannon Flak Cannon Grenade Launcher Plasma Cutter Multitool [Rating: 53] Favorites ----------- Power Subdweller Power Source Engine Subdweller Power Source Power Core Light Nuclear Core Propulsion Aluminum Leg Leg Aluminum Leg Utility Scrap Shield Device Armored Scrap Engine Storage Small Storage Unit Protection Scrap Shield Weapon Light Cannon Energy Gun Small Laser Energy Cannon Heavy Ion Cannon Ballistic Gun Assault Rifle Ballistic Cannon Light Cannon Launcher Grenade Launcher Special Weapon Plasma Cutter Slashing Weapon Chainsword Build | -11 -10 -10 -8 -6 ------- Run | Yrd Mat Sub Rec Fac Slots Evolved 8 | . . . . 8 Power 1 | . . . . 1 Propulsion 2 | . . . . 2 Utility 2 | . . . . 2 Weapon 3 | . . . . 3 Parts Attached 52 | 7 6 20 4 15 Power 9 | 2 2 4 . 1 Engine 7 | 2 . 4 . 1 Core 2 | . 2 . . . Reactor . | . . . . . Propulsion 7 | 2 2 2 1 . Treads . | . . . . . Leg 7 | 2 2 2 1 . Wheel . | . . . . . Hover . | . . . . . Flight . | . . . . . Utility 9 | 1 2 3 1 2 Device 5 | . 2 . 1 2 Storage 1 | 1 . . . . Processor . | . . . . . Hackware . | . . . . . Protection 3 | . . 3 . . Artifact . | . . . . . Weapon 27 | 2 . 11 2 12 Energy Gun 2 | 1 . 1 . . Energy Cannon 1 | . . . . 1 Ballistic Gun 2 | 1 . . . 1 Ballistic Cannon 12 | . . 5 2 5 Launcher 5 | . . 5 . . Special Weapon 1 | . . . . 1 Impact Weapon . | . . . . . Slashing Weapon 4 | . . . . 4 Piercing Weapon . | . . . . . Special Melee Weapon . | . . . . . Unidentified Prototypes . | . . . . . Parts Lost 22 | . 3 1 . 18 Power 4 | . 1 . . 3 Propulsion 3 | . 1 . . 2 Utility 5 | . 1 . . 4 Weapon 10 | . . 1 . 9 Highest Loss Streak 18 | . 3 1 . 18 To Critical Strikes . | . . . . . Average Slot Usage (%) 78 | . 87 84 70 54 Engine 8 | . 1 12 13 5 Core 3 | . 11 1 . . Leg 22 | . 27 28 14 5 Device 5 | . 3 . 14 14 Storage 3 | . 14 . . . Protection 5 | . . 13 . . Energy Gun 4 | . 14 1 . . Ballistic Gun 4 | . 14 . . 3 Ballistic Cannon 15 | . . 19 27 15 Launcher 2 | . . 6 . . Naked Turns 6 | . . . . 6 Heaviest Build 36 | 13 14 29 29 36 Greatest Support 33 | 20 20 30 33 24 Greatest Overweight (x) 6 | . 1 1 3 6 Average Overweight (x) . | . . . . . Largest Inventory Capacity 8 | 8 8 8 5 5 Average Capacity 5 | 6 8 5 5 5 Most Carried 8 | 3 8 8 5 5 Average Carried 5 | 1 7 4 4 4 Final Capacity 8 | 8 8 5 5 5 Final Carried 8 | 3 8 5 5 3 Scrap Engine Consumption 44 | . . . 27 17 Constructs Created 5 | . . . 2 3 Constructs Modified 9 | . . . 7 2 Class Distribution -------------------- 72% | Mutant 15% | Construct 5% | Skirmisher 3% | Gunner Dominant Class ---------------- Mutant | -10/Materials Mutant | -10/Subcaves Construct | -8/Recycling Skirmisher | -6/Factory Resources | -11 -10 -10 -8 -6 ----------- Run | Yrd Mat Sub Rec Fac Matter Collected 1420 | 270 175 529 323 123 Remotely . | . . . . . Salvage Created 1795 | . 474 258 501 562 Parts 106 | . 37 25 20 24 Haulers Intercepted . | . . . . . Recyclers Shooed 3 | . . . 1 2 Parts Field Recycled . | . . . . . Retrieved Matter . | . . . . . Parts Self-Destructed 8 | . . 8 . . Prevented . | . . . . . Kills | -11 -10 -10 -8 -6 ------- Run | Yrd Mat Sub Rec Fac Combat Hostiles Destroyed 29 | . 12 14 . 3 Melee 1 | . . . . 1 Guns 12 | . 12 . . . Cannons 6 | . . 5 . 1 AOE 9 | . . 9 . . Classes Destroyed 13 | . 5 2 1 5 Worker 3 | . 1 . . 2 Builder 3 | . 1 . 1 1 Tunneler 1 | . . . . 1 Recycler 11 | . . . 8 3 Mechanic 1 | . . . . 1 Watcher 1 | . . . . 1 Swarmer 9 | . 3 6 . . Grunt 9 | . 8 . . 1 Sentry 1 | . . . . 1 Behemoth 1 | . . . . 1 Artisan 1 | . . 1 . . Cobbler 1 | . . 1 . . Subdweller 9 | . 1 8 . . Best Kill Streak 7 | . 4 7 5 3 Combat Bots Only 7 | . 3 7 . 1 Max Kills in Single Turn 6 | . 1 6 1 1 Gunslinging . | . . . . . Exploded 6 | . . 6 . . Melee 1 | . . . . 1 Uniques/NPCs Destroyed . | . . . . . Combat | -11 -10 -10 -8 -6 -------- Run | Yrd Mat Sub Rec Fac Hostile Shots Fired 393 | . 58 74 . 261 Missed 129 | . 12 30 . 87 Damage Taken 3863 | . 589 708 . 2566 Core 1098 | . 121 112 . 865 Absorbed by Shields . | . . . . . Regen/Repaired (Parts) 119 | . . . . 119 Core Remaining (%) 53 | 100 . . 6 . Volleys Fired 146 | . 40 58 12 36 Largest 5 | . 2 2 2 5 Hottest 213 | . 60 75 79 213 Shots Fired 312 | . 80 111 24 97 Gun 101 | . 80 4 . 17 Cannon 199 | . . 96 24 79 Launcher 11 | . . 11 . . Special 1 | . . . . 1 Kinetic 228 | . 40 96 24 68 Thermal 73 | . 40 4 . 29 Explosive 11 | . . 11 . . Electromagnetic . | . . . . . Robot Hit Streak 18 | . 12 8 7 18 Robot Miss Streak 8 | . 2 2 4 8 Penetration Max . | . . . . . Secondary Targets 1 | . 1 . . . Max Gunslinging Chain 1 | . 1 . . . Shots Hit Robots 186 | . 61 36 15 74 Core Hits 103 | . 25 26 19 33 Critical Kills . | . . . . . Critical Parts Destroyed 1 | . 1 . . . Critical Strikes 5 | . 1 1 . 3 Burn 1 | . . . . 1 Destroy 1 | . 1 . . . Blast 2 | . . 1 . 1 Sever 1 | . . . . 1 Melee Attacks 10 | . . . . 10 Impact . | . . . . . Slashing 10 | . . . . 10 Piercing . | . . . . . Sneak Attacks 2 | . . . . 2 Combat Hostiles . | . . . . . Follow-up Attacks . | . . . . . Damage Inflicted 3895 | . 730 1215 290 1660 Guns 961 | . 730 46 . 185 Cannons 2012 | . . 503 290 1219 Explosions 666 | . . 666 . . Melee 244 | . . . . 244 Ramming . | . . . . . Kinetic 2124 | . 398 503 290 933 Thermal 861 | . 332 46 . 483 Explosive 666 | . . 666 . . Electromagnetic . | . . . . . Impact . | . . . . . Slashing 244 | . . . . 244 Piercing . | . . . . . Highest Corruption 5 | . . . . 5 Average Corruption 2 | . . . . 2 Corruption Purged . | . . . . . Corruption Blocked . | . . . . . Effects 1 | . . . . 1 Data Loss (major) 1 | . . . . 1 Overload Shots . | . . . . . Overflow Damage 86 | . . 17 . 69 Projectiles 76 | . . 16 . 60 Explosions 1 | . . 1 . . Melee 9 | . . . . 9 Knockbacks 34 | . . 8 5 21 Impact . | . . . . . Kinetic 32 | . . 8 5 19 Secondary 2 | . . . . 2 Self-Inflicted Damage 79 | . . 79 . . Shots 3 | . . 3 . . Rammed . | . . . . . Targets Rammed . | . . . . . Kicked . | . . . . . Crushed . | . . . . . Highest Temperature 311 | . 144 . 90 311 Average Temperature 78 | . 59 . 38 98 Received Heat Transfer 1131 | . 303 126 . 702 Effects 2 | . . . . 2 Energy Bleed 1 | . . . . 1 Short Circuit 1 | . . . . 1 Siege Activations . | . . . . . Robots Corrupted . | . . . . . Combat Hostiles . | . . . . . Parts Fried . | . . . . . Impact Corruptions . | . . . . . Robots Melted 1 | . . . . 1 Combat Hostiles 1 | . . . . 1 Parts Melted 5 | . . 2 . 3 Heat Transferred 1679 | . 750 100 . 829 Parts Sabotaged . | . . . . . Parts Stolen . | . . . . . Parts Stripped . | . . . . . Power Chain Reactions . | . . . . . Alert | -11 -10 -10 -8 -6 ------- Run | Yrd Mat Sub Rec Fac Peak Influence 280 | . 280 . 211 153 Initial 180 | . . . 180 50 Average 76 | . 76 . 96 59 Maximum Alert Level 1 | . 1 . 1 . Low Security (%) 96 | 100 93 . 98 100 Level 1 3 | . 6 . 1 . Level 2 . | . . . . . Level 3 . | . . . . . Level 4 . | . . . . . Level 5 . | . . . . . High Security . | . . . . . Max Security . | . . . . . Squads Dispatched 4 | . 2 . . 2 Investigation 2 | . 1 . . 1 Extermination . | . . . . . Reinforcement 2 | . 1 . . 1 Assault . | . . . . . Garrison . | . . . . . Intercept . | . . . . . Searches Triggered . | . . . . . Construction Impeded . | . . . . . Haulers Reinforced . | . . . . . Active Scanning Responses . | . . . . . Cargo Convoy Interrupts . | . . . . . Stealth | -11 -10 -10 -8 -6 --------- Run | Yrd Mat Sub Rec Fac Distress Signals 7 | . 4 . . 3 Communications Jammed . | . . . . . Distress Signals . | . . . . . Times Spotted 67 | . 19 34 . 14 Peak Tracking Total 11 | . 8 11 . 9 Tactical Retreats 7 | . 3 3 . 1 Traps | -11 -10 -10 -8 -6 ------- Run | Yrd Mat Sub Rec Fac Traps Triggered 2 | . 1 1 . . Indirectly . | . . . . . Trap Hack Attempts . | . . . . . Triggered . | . . . . . Disarmed . | . . . . . Reprogrammed . | . . . . . Reused . | . . . . . Traps Extracted . | . . . . . Installed . | . . . . . Triggered . | . . . . . Machines | -11 -10 -10 -8 -6 ---------- Run | Yrd Mat Sub Rec Fac Machines Disabled 1 | . . . . 1 Max in Single Turn 1 | . . . . 1 Machines Repaired . | . . . . . Machines Dismantled . | . . . . . Machines Sabotaged . | . . . . . Overloaded Fab Kills . | . . . . . Hacking | -11 -10 -10 -8 -6 --------- Run | Yrd Mat Sub Rec Fac Machines Accessed 8 | . 4 . 1 3 Terminals 5 | . 4 . 1 . Fabricators 2 | . . . . 2 Repair Stations 1 | . . . . 1 Recycling Units . | . . . . . Scanalyzers . | . . . . . Garrison Access . | . . . . . Total Hacks 23 | . 9 . 4 10 Successful 3 | . 1 . . 2 Failed 20 | . 8 . 4 8 Catastrophic 4 | . 2 . 1 1 Database Lockouts . | . . . . . Manual 12 | . 8 . 4 . Terminals 13 | . 9 . 4 . Fabricators 7 | . . . . 7 Repair Stations 3 | . . . . 3 Recycling Units . | . . . . . Scanalyzers . | . . . . . Garrison Access . | . . . . . Terminal Hacks 1 | . 1 . . . Unreport Threat 1 | . 1 . . . Fabricator Hacks . | . . . . . Repair Station Hacks 2 | . . . . 2 Scan Component 1 | . . . . 1 Repair 1 | . . . . 1 Recycling Unit Hacks . | . . . . . Scanalyzer . | . . . . . Garrison Access Hacks . | . . . . . Unauthorized Hacks . | . . . . . Terminals . | . . . . . Fabricators . | . . . . . Repair Stations . | . . . . . Recycling Units . | . . . . . Scanalyzers . | . . . . . Garrison Access . | . . . . . Data Cores Recovered . | . . . . . Used . | . . . . . Hacking Detections 7 | . 3 . 1 3 Full Trace Events 4 | . 2 . 1 1 Feedback Events . | . . . . . Feedback Blocked . | . . . . . Robot Schematics Acquired . | . . . . . Robots Built . | . . . . . Authchips . | . . . . . Time . | . . . . . Total Robot Build Rating . | . . . . . Part Schematics Acquired . | . . . . . Parts Built . | . . . . . Authchips . | . . . . . Time . | . . . . . Total Part Build Rating . | . . . . . Parts Repaired 1 | . . . . 1 Time 16 | . . . . 16 Parts Recycled . | . . . . . Recycled Matter . | . . . . . Retrieved Matter . | . . . . . Retrieved Components . | . . . . . Parts Scanalyzed . | . . . . . Part Schematics Acquired . | . . . . . Parts Damaged . | . . . . . Bothacking | -11 -10 -10 -8 -6 ------------ Run | Yrd Mat Sub Rec Fac Used RIF Installer . | . . . . . Robots Hacked . | . . . . . Non-combat . | . . . . . Combat . | . . . . . Robot Hacks Applied . | . . . . . Relay Couplers Released . | . . . . . Fabnet Peak Effective % . | . . . . . Robots Rewired 2 | . . . 2 . Allies Hacked . | . . . . . Hacks Repelled . | . . . . . Allies | -11 -10 -10 -8 -6 -------- Run | Yrd Mat Sub Rec Fac Total Allies 2 | . . . 2 . Largest Group 2 | . . . 2 . Highest-Rated Group 43 | . . . 43 . Highest-Rated Ally 27 | . . . 27 . Total Orders . | . . . . . Ally Attacks . | . . . . . Total Damage . | . . . . . Kills . | . . . . . Allies Corrupted . | . . . . . Allies Melted . | . . . . . Intel | -11 -10 -10 -8 -6 ------- Run | Yrd Mat Sub Rec Fac Robot Analysis Total . | . . . . . Derelict Logs Recovered 1 | . . 1 . . Drone Launches . | . . . . . Drone Recoveries . | . . . . . Exploration | -11 -10 -10 -8 -6 ------------- Run | Yrd Mat Sub Rec Fac Turns Passed 4315 | 93 1097 1702 893 530 Spaces Moved 2126 | 70 315 1074 433 234 Core 39 | 7 . . 18 14 Treads . | . . . . . Legs 2087 | 63 315 1074 415 220 Wheels . | . . . . . Hover . | . . . . . Flight . | . . . . . Fastest Speed 50 | 50 120 120 120 50 Average Speed 131 | 113 120 135 125 150 Slowest Speed 350 | 120 190 190 200 350 Overloaded Moves . | . . . . . Propulsion Burnouts . | . . . . . Robots Hopped . | . . . . . Cave-ins Triggered . | . . . . . Exploration Rate (%) 31 | 4 24 46 73 8 Regions Visited 4 Branch Regions 2 Pre-discovered Areas . | . . . . . Known Exits Taken . | . . . . . Unknown Exits Taken 4 | 1 1 1 1 . Scrap Searched . | . . . . . Spaces Dug 3 | . . 3 . . Terrain Destroyed 34 | . . 32 . 2 Melee . | . . . . . Projectile 2 | . . . . 2 AOE 32 | . . 32 . . Terrain Rammed . | . . . . . Walls Destroyed . | . . . . . Machines Disabled . | . . . . . Actions | -11 -10 -10 -8 -6 --------- Run | Yrd Mat Sub Rec Fac Total 3336 | 80 954 1209 763 330 Wait 912 | 1 579 34 267 31 Move 2122 | 69 314 1073 432 234 Hop . | . . . . . Pick Up 17 | 3 9 3 2 . Fast Attach 30 | 6 4 9 1 10 Attach 6 | . . 1 1 4 Detach 5 | . . . 3 2 Swap 16 | 1 2 10 2 1 Drop 28 | . 6 13 7 2 Fire 146 | . 40 58 12 36 Melee 10 | . . . . 10 Ram . | . . . . . Kick . | . . . . . Crush . | . . . . . Escape Stasis . | . . . . . Rewire 36 | . . . 36 . Trap . | . . . . . Miscellaneous 8 | . . 8 . . Route ------- -11/Scrapyard -10/Materials -10/Subcaves -8/Recycling -6/Factory History --------- Turn | Location | Event 9 | -11/Scrapyard | Discovered new exit (range 15) 94 | -11/Scrapyard | Entered Materials 300 | -10/Materials | Build established: Mutant 515 | -10/Materials | Lost 3 parts (1p1n1u) 594 | -10/Materials | Derelicts attacked the area 1177 | -10/Materials | Discovered new exit (range 12) 1191 | -10/Materials | Entered Subcaves 1196 | -10/Subcaves | Learned location of 1 exit from Materials 1317 | -10/Subcaves | Ambushed by swarm of Subdwellers 1318 | -10/Subcaves | Ambushed by Subdwellers from Twisted Machinery 1318 | -10/Subcaves | Ambushed by Subdwellers from Twisted Machinery 1318 | -10/Subcaves | Ambushed by Subdwellers from Twisted Machinery 1318 | -10/Subcaves | Ambushed by Subdwellers from Twisted Machinery 1321 | -10/Subcaves | Core integrity fell below 50% 1351 | -10/Subcaves | Destroyed 7 combat bots 1359 | -10/Subcaves | Lost 3 allies 1585 | -10/Subcaves | Shifting Twisted Machinery released Sub. Laser 1638 | -10/Subcaves | Shifting Twisted Machinery released Sub. Monowheel 1918 | -10/Subcaves | Core integrity fell below 20% 1956 | -10/Subcaves | A swath of the cavern ceiling suddenly collapsed 2673 | -10/Subcaves | Discovered new exit (range 16) 2828 | -10/Subcaves | Ambushed by Subdwellers from Twisted Machinery 2893 | -10/Subcaves | Entered Recycling 2899 | -8/Recycling | Found Scrap Engine 3408 | -8/Recycling | Build established: Construct 3768 | -8/Recycling | Discovered new exit (range 16) 3786 | -8/Recycling | Entered Factory 3786 | -6/Factory | Evolved 8 slots: Power x1, Propulsion x2, Utility x2, Weapon x3 3977 | -6/Factory | Repaired Battle Cannon 4207 | -6/Factory | Spotted B-75 Beast 4247 | -6/Factory | Destroyed B-75 Beast 4271 | -6/Factory | Core integrity fell below 50% 4287 | -6/Factory | Core integrity fell below 20% 4316 | -6/Factory | Destroyed by G-50 Soldier with Heavy Laser Last Messages --------------- 04281_ Scrap Engine damaged due to network destabilization (-6). 04282_ Imp. Ion Engine destroyed. 04283_ Scrap Engine consumes Med. Reflective Plating. 04283_ K-01 Serf collects debris. 04285_ Scrap Engine consumes Wheel. 04285_ Sneak attack on R-10 Processor. 04285_ Destroyed Imp. Ion Engine. 04286_ Scrap Engine destroyed. 04288_ K-01 Serf collects debris. 04288_ Chainsword destroyed. 04290_ U-05 Engineer destroyed. 04296_ P-60 Hacker knocked back. 04298_ G-50 Soldier knocked back. 04306_ System corrupted: Substantial component data lost. 04306_ G-50 Soldier knocked back. 04312_ Flak Cannon destroyed. 04312_ Critical hit (Burn: +37). 04312_ Acquired 6 matter. 04314_ G-50 Soldier Carbon-fiber Leg severed. 04314_ Plasma Cutter destroyed. Map ----- +----------------------------------------------------+ | # """ """ #?# ## #??? | | +##### """ #######+##### %% #??? | | "R """ """ % #??? | | """ """ """ % % #??? | | % """ """ """ #??? | | % #??? | | #??? | | ###############+########### ###+##### #??? | | #????????? ?????????????# #? ????? #??? | | #????????? ?????????????# # ""????? #??? | | #????????? ""?????????##### # "?????? #??? | | #????????? ""?????????+ % % # "?????? #??? | | #????????? ""?????????##### #???????? #??? | | #????????? ??? ????#% #???????? #??? | | #????????? ????? #???# #???????? #??? | | #????????? ???? #???# %######### ?#??? | | #????????? ????? #???# ????? | | ##???????? ??" """ #???# ????? | | #????????????"S""" #???#"" ???? | | #????????????? ????#" ???? | | #????????????#####+########"F ???? | | ?????????????# #"" """ """ """ "?????? | | ????????????## ""# """ """ ""????????? | | ????????????## T"# """ """ """???????? | | ???????????### p ""# "%" """ %"" """???? | | ???????????# # @gY ????? | | ???????????#"# # = % ????? | | ???????????## #%%! % RR ????? | | ???????????### # = % ##########???????? | | ???????????# # # % # ????? | | ???????????### # % %# ????? | | ????????????## ! # !=!!#????" """ ?????? | | ????????????## # %* #??????"""???????? | | ?????????????############## = #????????????????? | | ??????????????????????????# #????????????????? | | ??????????????????????????# ! #????????????????? | | ??????????????????????????# =% #????????????????? | | ??????????????????????????# ! #????????????????? | | ??????????????????????????# #????????????????? | | ??????????????????????????# #????????????????? | | ??????????????????????????# ^#????????????????? | | ??????????????????????????#^^ #????????????????? | | ??????????????????????????# #????????????????? | | ??????????????????????????# #????????????????? | | ??????????????????????????# ????????????????? | | ??????????????????????????+ ?????????????????? | | ???????????????????????????? ?????????????????? | | ?????????????????????????????????????????????????? | | ?????????????????????????????????????????????????? | | ?????????????????????????????????????????????????? | +----------------------------------------------------+ Best States ------------- Heat Dissipation 39 Coolant Potential 50 Energy Generation 15 Energy Capacity 265 Matter Stores 300 Matter Capacity 300 Sight Range 16 Terrain Scan Density 10 Armor Coverage 800 Evasion (%) 55 Item Schematics ----------------- None Robot Schematics ------------------ None Fabricated ------------ Nothing Alien Tech Used ----------------- None Achievements -------------- None Challenges ------------ None Game ------ Seed CoolantWaveWell Manual? 0 Play Time 00:25:32 Cumulative 120.0 hours Start 2024.04.24 @ 15:38:22 End 2024.04.24 @ 16:20:41 Sessions 1 Manual Loads 0 Difficulty Rogue Special Mode None Game No. 245 Rogue 245 Adventurer 0 Explorer 0 Win Type - Total 0 Types 0/0/0/0/0/0/0/0/0 Lore% 34 Gallery% 53 Achievement% 37 Wizard Run 0 Options --------- Layout 0 ASCII 0 Keyboard 1 Movement Numpad Keybinds 0 Fullscreen 2 Font 18/X11 Map View 76x50 Zoom Use 0% Tactical HUD 1 Map Filters NONE Filters NONE Steam 1 RUN: 435c963d-8b98-4f9e-b9e3-68ec0a3bef70